Cogmind - Beta 13 @@@ ROGUE MODE // 2024.06.22 @ 13:03:18 Player: CONNOR_M Result: Destroyed by UP-5LR(R) with Subdweller Laser Performance ------------- Evolutions (0) 0 Regions Visited (3) 600 Robots Destroyed (15) 75 Value Destroyed (248) 248 Prototype IDs (0) 0 Alien Tech Used (0) 0 Bonus (0) 0 TOTAL SCORE: 923 Bonus ------- None Cogmind --------- Core Integrity 0/250 Matter 230/300 Energy 60/100 System Corruption 0% Temperature Cool (6) Movement Rolling (95) Ox1 Location -10/Subcaves Parts ------- > --- POWER (1) -------- (None) > --- PROPULSION (2) --- Wheel > --- UTILITY (2) ------ Medium Storage Unit Core Shielding > --- WEAPON (2) ------- Subdweller Beam Cannon > --- INVENTORY (10) --- Light Ion Engine Wheel Subdweller Monowheel Compact Matter Pod (150) Experimental Sensor Array Improved Terrain Scanner Mining Claw Scrap Shield Fragment (49) Peak State ------------ > --- POWER ------------ Ion Engine > --- PROPULSION ------- Aluminum Leg Aluminum Leg > --- UTILITY ---------- Medium Storage Unit Seismic Detector > --- WEAPON ----------- Medium Laser Small Laser > --- INVENTORY -------- Light Ion Engine Light Ion Engine Wheel Wheel Improved Heat Sink Compact Matter Pod Experimental Sensor Array Improved Terrain Scanner Grenade Launcher Datajack [Rating: 9] Favorites ----------- Power Ion Engine Engine Ion Engine Propulsion Aluminum Leg Leg Aluminum Leg Wheel Compact Wheel Utility Medium Storage Unit Device Seismic Detector Storage Medium Storage Unit Protection Light Armor Plating Weapon Assault Rifle Energy Gun Small Laser Energy Cannon Subdweller Beam Cannon Ballistic Gun Assault Rifle Launcher Grenade Launcher Slashing Weapon Mining Claw Build | -11 -10 -10 -10 ------- Run | Yrd Mat Min Sub Slots Evolved . | . . . . Power . | . . . . Propulsion . | . . . . Utility . | . . . . Weapon . | . . . . Parts Attached 21 | 9 2 3 7 Power 2 | 1 1 . . Engine 2 | 1 1 . . Core . | . . . . Reactor . | . . . . Propulsion 6 | 4 . 1 1 Treads . | . . . . Leg 3 | 2 . 1 . Wheel 3 | 2 . . 1 Hover . | . . . . Flight . | . . . . Utility 5 | 2 1 . 2 Device 1 | 1 . . . Storage 2 | 1 1 . . Processor . | . . . . Hackware . | . . . . Protection 2 | . . . 2 Artifact . | . . . . Weapon 8 | 2 . 2 4 Energy Gun 3 | 2 . . 1 Energy Cannon 1 | . . . 1 Ballistic Gun 2 | . . 1 1 Ballistic Cannon . | . . . . Launcher 1 | . . . 1 Special Weapon . | . . . . Impact Weapon . | . . . . Slashing Weapon 1 | . . 1 . Piercing Weapon . | . . . . Special Melee Weapon . | . . . . Unidentified Prototypes . | . . . . Parts Lost 9 | . . . 9 Power 1 | . . . 1 Propulsion 2 | . . . 2 Utility 2 | . . . 2 Weapon 4 | . . . 4 Highest Loss Streak 4 | . . . 4 To Critical Strikes . | . . . . Average Slot Usage (%) 96 | . 100 100 91 Engine 12 | . 14 14 10 Leg 26 | . 28 28 25 Device 8 | . 14 14 . Storage 14 | . 14 14 14 Protection 4 | . . . 11 Energy Gun 12 | . 28 14 1 Ballistic Gun 7 | . . 6 13 Launcher 4 | . . . 11 Slashing Weapon 2 | . . 6 . Naked Turns . | . . . . Heaviest Build 23 | 12 19 20 23 Greatest Support 32 | 32 20 20 20 Greatest Overweight (x) 1 | . . . 1 Average Overweight (x) . | . . . . Largest Inventory Capacity 10 | 8 10 10 10 Average Capacity 9 | 7 9 10 10 Most Carried 10 | 6 10 10 10 Average Carried 9 | 3 9 9 9 Final Capacity 10 | 8 10 10 10 Final Carried 10 | 6 10 10 8 Class Distribution -------------------- 100% | Mutant Dominant Class ---------------- Mutant | -10/Materials Mutant | -10/Mines Mutant | -10/Subcaves Resources | -11 -10 -10 -10 ----------- Run | Yrd Mat Min Sub Matter Collected 670 | 246 13 282 129 Remotely . | . . . . Salvage Created 327 | 134 42 26 125 Parts 24 | 10 5 2 7 Haulers Intercepted . | . . . . Recyclers Shooed . | . . . . Parts Field Recycled . | . . . . Retrieved Matter . | . . . . Parts Self-Destructed 13 | . . . 13 Prevented . | . . . . Kills | -11 -10 -10 -10 ------- Run | Yrd Mat Min Sub Combat Hostiles Destroyed 10 | . 3 . 7 Guns 5 | . 3 . 2 AOE 5 | . . . 5 Classes Destroyed 5 | 2 1 1 1 Worker 1 | . . 1 . Tunneler 3 | 3 . . . Recycler 1 | 1 . . . Swarmer 6 | . 3 . 3 Subdweller 4 | . . . 4 Best Kill Streak 3 | 2 3 1 3 Combat Bots Only 3 | . 3 . 3 Max Kills in Single Turn 2 | 1 2 1 2 Gunslinging 1 | . 1 . . Exploded 2 | . . . 2 Melee . | . . . . Uniques/NPCs Destroyed . | . . . . Combat | -11 -10 -10 -10 -------- Run | Yrd Mat Min Sub Hostile Shots Fired 118 | . 37 . 81 Missed 32 | . 8 . 24 Damage Taken 1176 | . 287 . 889 Core 252 | . 17 . 235 Absorbed by Shields . | . . . . Redirected to Shielding 11 | . . . 11 Core Remaining (%) 100 | 100 . . . Volleys Fired 35 | 6 5 1 23 Largest 2 | 2 2 2 2 Hottest 90 | 90 90 90 80 Shots Fired 65 | 12 10 2 41 Gun 49 | 12 10 2 25 Cannon 4 | . . . 4 Launcher 12 | . . . 12 Special . | . . . . Kinetic 18 | . . . 18 Thermal 28 | 12 10 2 4 Explosive 12 | . . . 12 Electromagnetic 7 | . . . 7 Robot Hit Streak 5 | 4 3 2 5 Robot Miss Streak 2 | 1 2 . 1 Penetration Max . | . . . . Secondary Targets 1 | . 1 . . Max Gunslinging Chain 1 | . 1 . . Shots Hit Robots 39 | 8 4 2 25 Core Hits 29 | 5 3 1 20 Critical Kills . | . . . . Critical Parts Destroyed . | . . . . Critical Strikes 1 | . . 1 . Burn 1 | . . 1 . Melee Attacks . | . . . . Impact . | . . . . Slashing . | . . . . Piercing . | . . . . Sneak Attacks . | . . . . Combat Hostiles . | . . . . Follow-up Attacks . | . . . . Damage Inflicted 1076 | 98 47 23 908 Guns 424 | 98 47 23 256 Cannons 55 | . . . 55 Explosions 597 | . . . 597 Melee . | . . . . Ramming . | . . . . Kinetic 129 | . . . 129 Thermal 223 | 98 47 23 55 Explosive 597 | . . . 597 Electromagnetic 127 | . . . 127 Impact . | . . . . Slashing . | . . . . Piercing . | . . . . Highest Corruption . | . . . . Average Corruption . | . . . . Corruption Purged . | . . . . Corruption Blocked . | . . . . Overload Shots . | . . . . Overflow Damage 35 | . . . 35 Projectiles . | . . . . Explosions 35 | . . . 35 Melee . | . . . . Knockbacks . | . . . . Impact . | . . . . Kinetic . | . . . . Secondary . | . . . . Self-Inflicted Damage 38 | . . . 38 Shots 2 | . . . 2 Rammed . | . . . . Targets Rammed . | . . . . Kicked . | . . . . Crushed . | . . . . Highest Temperature 257 | 60 60 30 257 Average Temperature 43 | 22 23 18 129 Received Heat Transfer 513 | . 72 . 441 Siege Activations . | . . . . Robots Corrupted . | . . . . Combat Hostiles . | . . . . Parts Fried . | . . . . Impact Corruptions . | . . . . Robots Melted . | . . . . Combat Hostiles . | . . . . Parts Melted 2 | . 1 1 . Heat Transferred 606 | 260 136 136 74 Parts Sabotaged . | . . . . Parts Stolen . | . . . . Parts Stripped . | . . . . Power Chain Reactions . | . . . . Alert | -11 -10 -10 -10 ------- Run | Yrd Mat Min Sub Peak Influence 151 | 20 151 63 . Initial 58 | . 13 58 . Average 26 | 4 28 29 . Maximum Alert Level . | . . . . Low Security (%) 100 | 100 100 100 . Level 1 . | . . . . Level 2 . | . . . . Level 3 . | . . . . Level 4 . | . . . . Level 5 . | . . . . High Security . | . . . . Max Security . | . . . . Squads Dispatched . | . . . . Investigation . | . . . . Extermination . | . . . . Reinforcement . | . . . . Assault . | . . . . Garrison . | . . . . Intercept . | . . . . Searches Triggered . | . . . . Construction Impeded . | . . . . Haulers Reinforced . | . . . . Active Scanning Responses . | . . . . Cargo Convoy Interrupts . | . . . . Stealth | -11 -10 -10 -10 --------- Run | Yrd Mat Min Sub Distress Signals 2 | . 2 . . Communications Jammed . | . . . . Distress Signals . | . . . . Times Spotted 40 | . 14 . 26 Peak Tracking Total 6 | . 6 . 6 Tactical Retreats 4 | . 2 . 2 Traps | -11 -10 -10 -10 ------- Run | Yrd Mat Min Sub Traps Triggered . | . . . . Indirectly . | . . . . Trap Hack Attempts . | . . . . Triggered . | . . . . Disarmed . | . . . . Reprogrammed . | . . . . Reused . | . . . . Traps Extracted . | . . . . Installed . | . . . . Triggered . | . . . . Machines | -11 -10 -10 -10 ---------- Run | Yrd Mat Min Sub Machines Disabled 2 | . . . 2 Max in Single Turn 1 | . . . 1 Machines Repaired . | . . . . Machines Dismantled . | . . . . Machines Sabotaged . | . . . . Overloaded Fab Kills . | . . . . Hacking | -11 -10 -10 -10 --------- Run | Yrd Mat Min Sub Machines Accessed 4 | . 4 . . Terminals 3 | . 3 . . Fabricators . | . . . . Repair Stations . | . . . . Recycling Units 1 | . 1 . . Scanalyzers . | . . . . Garrison Access . | . . . . Total Hacks 8 | . 8 . . Successful 5 | . 5 . . Failed 3 | . 3 . . Catastrophic 1 | . 1 . . Database Lockouts . | . . . . Manual 1 | . 1 . . Terminals 5 | . 5 . . Fabricators . | . . . . Repair Stations . | . . . . Recycling Units 3 | . 3 . . Scanalyzers . | . . . . Garrison Access . | . . . . Terminal Hacks 3 | . 3 . . Branch Access Points 1 | . 1 . . Hauler Manifests 1 | . 1 . . Zone Layout 1 | . 1 . . Fabricator Hacks . | . . . . Repair Station Hacks . | . . . . Recycling Unit Hacks 2 | . 2 . . Process 1 | . 1 . . Report Inventory 1 | . 1 . . Scanalyzer . | . . . . Garrison Access Hacks . | . . . . Unauthorized Hacks . | . . . . Terminals . | . . . . Fabricators . | . . . . Repair Stations . | . . . . Recycling Units . | . . . . Scanalyzers . | . . . . Garrison Access . | . . . . Data Cores Recovered . | . . . . Used . | . . . . Hacking Detections 4 | . 4 . . Full Trace Events . | . . . . Feedback Events . | . . . . Feedback Blocked . | . . . . Robot Schematics Acquired . | . . . . Robots Built . | . . . . Authchips . | . . . . Time . | . . . . Total Robot Build Rating . | . . . . Part Schematics Acquired . | . . . . Parts Built . | . . . . Authchips . | . . . . Time . | . . . . Total Part Build Rating . | . . . . Parts Repaired . | . . . . Time . | . . . . Parts Recycled . | . . . . Recycled Matter 4 | . 4 . . Retrieved Matter . | . . . . Retrieved Components . | . . . . Parts Scanalyzed . | . . . . Part Schematics Acquired . | . . . . Parts Damaged . | . . . . Bothacking | -11 -10 -10 -10 ------------ Run | Yrd Mat Min Sub Used RIF Installer . | . . . . Robots Hacked . | . . . . Non-combat . | . . . . Combat . | . . . . Robot Hacks Applied . | . . . . Relay Couplers Released . | . . . . Fabnet Peak Effective % . | . . . . Robots Rewired . | . . . . Allies Hacked . | . . . . Hacks Repelled . | . . . . Allies | -11 -10 -10 -10 -------- Run | Yrd Mat Min Sub Total Allies . | . . . . Largest Group . | . . . . Highest-Rated Group . | . . . . Highest-Rated Ally . | . . . . Total Orders . | . . . . Ally Attacks . | . . . . Total Damage . | . . . . Kills . | . . . . Allies Corrupted . | . . . . Allies Melted . | . . . . Intel | -11 -10 -10 -10 ------- Run | Yrd Mat Min Sub Robot Analysis Total . | . . . . Derelict Logs Recovered 2 | . . 1 1 Drone Launches . | . . . . Drone Recoveries . | . . . . Exploration | -11 -10 -10 -10 ------------- Run | Yrd Mat Min Sub Turns Passed 2697 | 140 692 799 1066 Spaces Moved 1766 | 92 428 653 593 Core 2 | 2 . . . Treads . | . . . . Legs 1696 | 58 428 653 557 Wheels 68 | 32 . . 36 Hover . | . . . . Flight . | . . . . Fastest Speed 50 | 50 120 120 95 Average Speed 135 | 111 120 120 166 Slowest Speed 190 | 120 120 120 190 Overloaded Moves . | . . . . Propulsion Burnouts . | . . . . Robots Hopped . | . . . . Cave-ins Triggered . | . . . . Exploration Rate (%) 50 | 5 66 98 34 Regions Visited 3 Branch Regions 2 Pre-discovered Areas 3 | . . 2 1 Known Exits Taken 1 | . 1 . . Unknown Exits Taken 2 | 1 . 1 . Scrap Searched 2 | . . 1 1 Spaces Dug . | . . . . Terrain Destroyed 51 | . . . 51 Melee . | . . . . Projectile 2 | . . . 2 AOE 49 | . . . 49 Terrain Rammed . | . . . . Walls Destroyed . | . . . . Machines Disabled . | . . . . Actions | -11 -10 -10 -10 --------- Run | Yrd Mat Min Sub Total 2007 | 113 596 671 627 Wait 158 | 1 156 . 1 Move 1763 | 91 427 652 593 Hop . | . . . . Pick Up 19 | 6 4 6 3 Fast Attach 10 | 7 . 2 1 Attach 5 | . . . 5 Detach . | . . . . Swap 6 | 2 2 1 1 Drop 11 | . 2 9 . Fire 35 | 6 5 1 23 Melee . | . . . . Ram . | . . . . Kick . | . . . . Crush . | . . . . Escape Stasis . | . . . . Rewire . | . . . . Trap . | . . . . Miscellaneous . | . . . . Route ------- -11/Scrapyard -10/Materials (discovered 3 exits: [*Mat x2] / *Min) -10/Mines (discovered 3 exits: [*Mat x2] / [*Sub]) -10/Subcaves History --------- Turn | Location | Event 28 | -11/Scrapyard | Discovered new exit (range 16) 141 | -11/Scrapyard | Entered Materials 314 | -10/Materials | Build established: Mutant 559 | -10/Materials | Discovered new exit (range 4) 646 | -10/Materials | Discovered new exit (range 9) 761 | -10/Materials | Discovered new exit (range 13) 793 | -10/Materials | Identified exit to Mines 833 | -10/Materials | Entered Mines 834 | -10/Mines | Assembled infested the area 879 | -10/Mines | Learned location of Storage (-8) 966 | -10/Mines | Learned location of Zion (-6) 1130 | -10/Mines | Discovered new exit (range 10) 1177 | -10/Mines | Discovered new exit (range 7) 1228 | -10/Mines | Found a damaged Exp. Sensor Array with a note attached 1230 | -10/Mines | Found Prototype Device 1625 | -10/Mines | Discovered new exit (range 6) 1632 | -10/Mines | Entered Subcaves 1972 | -10/Subcaves | Met a Zionite searching for "candidates" 2573 | -10/Subcaves | Lost 4 parts (1n1u2w) 2609 | -10/Subcaves | Learned Materials security intel 2643 | -10/Subcaves | Ambushed by Subdweller buried in earth 2645 | -10/Subcaves | Core integrity fell below 50% 2660 | -10/Subcaves | Core integrity fell below 20% 2686 | -10/Subcaves | Lost 3 parts (1n2w) 2698 | -10/Subcaves | Destroyed by UP-5LR(R) with Subdweller Laser Last Messages --------------- 02550_ MB-K4R(R) destroyed. 02553_ Subatomizers dissect the Disposable Heat Sink. 02557_ Acquired 44 matter. 02558_ Acquired 18 matter. 02562_ Acquired Sub. Monowheel. 02565_ Subatomizers dissect the Disposable Heat Sink. 02609_ Acquired derelict log, extracted data. Data stored: Materials security intel. 02643_ Critical hit (Meltdown: +270). 02644_ S8-Z6Q(R): "ARGHSUB!" 02647_ S8-Z6Q(R) destroyed. 02648_ Assault Rifle destroyed. 02652_ Acquired Scrap Shield Fragment. 02653_ 0F-508(R) affixes Scrap Shield Fragment to Scrap Shield. 02654_ Aluminum Leg destroyed. 02654_ UP-5LR(R) affixes Scrap Shield Fragment to Scrap Shield. 02654_ Acquired Sub. Beam Cannon. 02655_ Riot Gun destroyed. 02673_ UP-5LR(R) misfires. 02673_ 0F-508(R) destroyed. Map ----- +----------------------------------------------------+ | ?????????????## #??????????????### | | ??????????????### #???????????????## | | ????????????????# ####?#######??### | | ????????????????## ## ### ## #### | | ?????????????????##### | | ????????????????##??## | | ????????????????# ### ### # # # # # ## ###### | | ????????????????# ##################????? | | ????????????????# ##?????????????????????? | | ????????????????#### #??????????????????????? | | ??????????????????## #??????????????????????? | | ??????????????????# #??????????????????????? | | ??????????????????# ##??????????????????????? | | ????????????????### ##???????????????????????? | | ????????????????# ####????????????????????????? | | #######?????????# #???????????????????????????? | | ##??####### ##???????????????????????????? | | """ #### ## ## ##???????????????????????????? | | "" #???????????????????????????? | | "" # % # # ##???????????????????????????? | | "" "######## #????????????????????????????? | | """"###??????# #???????????????????????????? | | "#????????# #???###????####?????????????? | | ""???????## ##??## ###### ####??????????? | | "???????? #??## ## #??????????? | | ##### ??????? #?## @ ##??????????? | | ####???????????? #?# ###???????????? | | ##??????????????? ##?# R ;#?????????????? | | #????????????????###??# ##;# ###?????????????? | | ??????????????????############# ##??????????????? | | ?####?##????????### # # ##?????????????? | | ## # ? #????????# ####??????????? | | ##??????## # ## #??????????? | | #??????# ######## ## #?????????? | | ??? ######### # %! ## #????????? | | #???## ## # ### !&* ## #????????? | | #??## ## #? #???????? | | ???# # ## #? ??????? | | ??## ##### #?? ### ?????? | | ??# ## #??# ###?? ##????????? | | ### ### ### #??# #????? #?????????? | | ## ### ####& #??## #?????? #?????????? | | # ####?# #???## #????????????????? | | & #????## %#????## ##????????????????? | | & & #????# !=#?????#####?????????????????? | | ! #????#####???????????????????????????? | | # ##????????????????????????????????????? | | ### ##?????????????????????????????????????? | | #?#########??????????????????????????????????????? | | #????????????????????????????????????????????????? | +----------------------------------------------------+ Best States ------------- Heat Dissipation 25 Energy Generation 10 Energy Capacity 250 Matter Stores 300 Matter Capacity 300 Sight Range 16 Terrain Scan Density 10 Armor Coverage 150 Core Shielding 20 Evasion (%) 55 Item Schematics ----------------- None Robot Schematics ------------------ None Fabricated ------------ Nothing Alien Tech Used ----------------- None Achievements -------------- None Challenges ------------ None Game ------ Seed PointPowerKinecellerator Manual? 0 Play Time 00:21:21 Cumulative 35.8 hours Start 2024.06.22 @ 12:42:44 End 2024.06.22 @ 13:03:18 Sessions 1 Manual Loads 0 Difficulty Rogue Special Mode None Game No. 66 Rogue 66 Adventurer 0 Explorer 0 Win Type - Total 0 Types 0/0/0/0/0/0/0/0/0 Lore% 21 Gallery% 23 Achievement% 26 Wizard Run 0 Options --------- Layout 0 ASCII 0 Keyboard 0 Movement Arrows Keybinds 0 Fullscreen 2 Font 18/SmallcapsGlow Map View 76x50 Zoom Use 0% Tactical HUD 1 Map Filters NONE Filters NONE Steam 1 RUN: 307d23f8-ad3e-441f-980a-bf729cff482f